[Event "*** Titled Tuesday 3|2 Blitz"]
[Site "Chess.com"]
[Date "2016.03.01"]
[Round "1"]
[White "jk13"]
[Black "FrankieJay"]
[Result "0-1"]
[WhiteElo "2430"]
[BlackElo "2239"]
[TimeControl "180+2"]
[EndTime "17:10:31 PST"]
[Termination "FrankieJay won by resignation"]

1. e4 {[%clk 0:02:59.8]} 1... c6 {[%clk 0:03:00.3]} 2. Nc3 {[%clk 0:02:58.9]}
2... d5 {[%clk 0:03:01.6]} 3. Nf3 {[%clk 0:02:52.3]} 3... Bg4 {[%clk 0:03:02.5]}
4. h3 {[%clk 0:02:51.5]} 4... Bxf3 {[%clk 0:03:03.8]} 5. Qxf3 {[%clk 0:02:53.1]}
5... e6 {[%clk 0:03:05.3]} 6. a3 {[%clk 0:02:54]} 6... Nf6 {[%clk 0:03:05.7]} 7.
d3 {[%clk 0:02:53.7]} 7... Be7 {[%clk 0:03:01.8]} 8. g3 {[%clk 0:02:54]} 8...
O-O {[%clk 0:03:02.9]} 9. Bg2 {[%clk 0:02:55.4]} 9... Nbd7 {[%clk 0:03:02.8]}
10. O-O {[%clk 0:02:56.9]} 10... Qb6 {[%clk 0:02:45.7]} 11. Qe2 {[%clk
0:02:58.2]} 11... Rfe8 {[%clk 0:02:44.2]} 12. Kh1 {[%clk 0:02:58]} 12... dxe4
{[%clk 0:02:27.3]} 13. dxe4 {[%clk 0:02:58.3]} 13... e5 {[%clk 0:02:17.4]} 14.
Rb1 {[%clk 0:02:54]} 14... Nc5 {[%clk 0:02:04.7]} 15. Be3 {[%clk 0:02:48.6]}
15... Qc7 {[%clk 0:02:05.8]} 16. Rbd1 {[%clk 0:02:45.2]} 16... Rad8 {[%clk
0:02:03]} 17. h4 {[%clk 0:02:30.9]} 17... Ne6 {[%clk 0:01:57.8]} 18. Qc4 {[%clk
0:02:26.8]} 18... Ng4 {[%clk 0:01:37.3]} 19. Rxd8 {[%clk 0:02:23.3]} 19... Rxd8
{[%clk 0:01:37]} 20. Bc1 {[%clk 0:02:18.3]} 20... Qb6 {[%clk 0:01:26.9]} 21. Qe2
{[%clk 0:02:17]} 21... Nf6 {[%clk 0:01:24.7]} 22. b4 {[%clk 0:01:56.8]} 22...
Nd4 {[%clk 0:01:25.2]} 23. Qc4 {[%clk 0:01:57.7]} 23... a5 {[%clk 0:01:19.1]}
24. Na4 {[%clk 0:01:46.5]} 24... Qb5 {[%clk 0:01:16.7]} 25. Qxb5 {[%clk
0:01:46.2]} 25... cxb5 {[%clk 0:01:18.6]} 26. Nb6 {[%clk 0:01:31.8]} 26... axb4
{[%clk 0:01:18.3]} 27. axb4 {[%clk 0:01:31.5]} 27... Nxc2 {[%clk 0:01:16.4]} 28.
Bg5 {[%clk 0:01:25.5]} 28... Nxb4 {[%clk 0:01:12]} 29. Rb1 {[%clk 0:01:22.2]}
29... Bc5 {[%clk 0:00:35.1]} 30. Bxf6 {[%clk 0:01:00.4]} 30... gxf6 {[%clk
0:00:37]} 31. Nd5 {[%clk 0:01:00.7]} 31... Nxd5 {[%clk 0:00:37.8]} 32. exd5
{[%clk 0:01:01.9]} 32... Bxf2 {[%clk 0:00:33.6]} 33. Kh2 {[%clk 0:00:59.5]}
33... b6 {[%clk 0:00:30.6]} 34. Be4 {[%clk 0:00:54.4]} 34... Rc8 {[%clk
0:00:28.3]} 35. Rf1 {[%clk 0:00:44.9]} 35... Rc4 {[%clk 0:00:18.9]} 36. Bf5
{[%clk 0:00:33.1]} 36... Bc5 {[%clk 0:00:16.9]} 37. Rd1 {[%clk 0:00:27.3]} 37...
Rd4 {[%clk 0:00:16.9]} 38. Rxd4 {[%clk 0:00:28.2]} 38... exd4 {[%clk 0:00:18.8]}
39. Kg2 {[%clk 0:00:27.1]} 39... h6 {[%clk 0:00:19.5]} 40. Kf3 {[%clk
0:00:28.2]} 40... Kf8 {[%clk 0:00:21.2]} 41. Kg4 {[%clk 0:00:29.3]} 41... Bb4
{[%clk 0:00:19.9]} 42. Kh5 {[%clk 0:00:28.6]} 42... Bd2 {[%clk 0:00:20.9]} 43.
Bd3 {[%clk 0:00:30.3]} 43... b4 {[%clk 0:00:21.1]} 44. Kg4 {[%clk 0:00:31.5]}
44... Ke7 {[%clk 0:00:22.4]} 45. Kf5 {[%clk 0:00:33]} 45... Be1 {[%clk
0:00:22.9]} 46. Kf4 {[%clk 0:00:33.2]} 46... Kd6 {[%clk 0:00:23.6]} 47. Be4
{[%clk 0:00:33.5]} 47... f5 {[%clk 0:00:24.2]} 48. Kxf5 {[%clk 0:00:31.2]} 48...
Bxg3 {[%clk 0:00:25.2]} 49. h5 {[%clk 0:00:33.1]} 49... Be5 {[%clk 0:00:22.8]}
50. Bc2 {[%clk 0:00:23.2]} 50... Kxd5 {[%clk 0:00:17.4]} 51. Bb3+ {[%clk
0:00:24.9]} 51... Kd6 {[%clk 0:00:18.8]} 52. Bxf7 {[%clk 0:00:22.4]} 52... d3
{[%clk 0:00:20.2]} 53. Ke4 {[%clk 0:00:22.5]} 53... d2 {[%clk 0:00:21.1]} 54.
Bb3 {[%clk 0:00:24.2]} 54... Bc3 {[%clk 0:00:22.1]} 55. Kd3 {[%clk 0:00:23.4]}
55... Ke5 {[%clk 0:00:23.4]} 56. Kc2 {[%clk 0:00:23.6]} 56... Kf4 {[%clk
0:00:24.9]} 57. Kd3 {[%clk 0:00:21.9]} 57... Kg5 {[%clk 0:00:26.1]} 58. Bd1
{[%clk 0:00:23]} 58... Kf4 {[%clk 0:00:24.3]} 59. Kc2 {[%clk 0:00:24]} 59... Ke3
{[%clk 0:00:25.5]} 60. Kb3 {[%clk 0:00:24.6]} 60... Kd3 {[%clk 0:00:26.8]} 61.
Bg4 {[%clk 0:00:23.1]} 61... b5 {[%clk 0:00:24.8]} 62. Bd1 {[%clk 0:00:22.1]}
62... Ke3 {[%clk 0:00:25.9]} 63. Kc2 {[%clk 0:00:21.4]} 63... Kf2 {[%clk
0:00:24.6]} 64. Bg4 {[%clk 0:00:21.9]} 64... Ke1 {[%clk 0:00:26.5]} 65. Bf3
{[%clk 0:00:22.2]} 65... Bf6 {[%clk 0:00:20.1]} 66. Bg4 {[%clk 0:00:22.2]} 66...
Be7 {[%clk 0:00:18.4]} 67. Bf3 {[%clk 0:00:22.8]} 67... b3+ {[%clk 0:00:19.8]}
68. Kxb3 {[%clk 0:00:23.4]} 68... d1=Q+ {[%clk 0:00:21.4]} 69. Bxd1 {[%clk
0:00:25]} 69... Kxd1 {[%clk 0:00:23.3]} 70. Kc3 {[%clk 0:00:26.6]} 70... b4+
{[%clk 0:00:24.6]} 71. Kb3 {[%clk 0:00:28.5]} 71... Kd2 {[%clk 0:00:25.9]} 0-1

[Event "*** Titled Tuesday 3|2 Blitz"]
[Site "Chess.com"]
[Date "2016.03.01"]
[Round "1"]
[White "Tesla17"]
[Black "Dlugy"]
[Result "0-1"]
[WhiteElo "2290"]
[BlackElo "2608"]
[TimeControl "180+2"]
[EndTime "17:11:29 PST"]
[Termination "Dlugy won by resignation"]

1. d4 {[%clk 0:02:57.6]} 1... Nf6 {[%clk 0:03:00.9]} 2. c4 {[%clk 0:02:58.5]}
2... g6 {[%clk 0:03:02.5]} 3. Nc3 {[%clk 0:03:00]} 3... Bg7 {[%clk 0:03:04.1]}
4. e4 {[%clk 0:03:01.5]} 4... d6 {[%clk 0:03:05.8]} 5. Be2 {[%clk 0:03:03]} 5...
O-O {[%clk 0:03:07.3]} 6. Nf3 {[%clk 0:03:04.4]} 6... e5 {[%clk 0:03:08.5]} 7.
O-O {[%clk 0:03:05.8]} 7... exd4 {[%clk 0:03:09.4]} 8. Nxd4 {[%clk 0:03:07.3]}
8... Re8 {[%clk 0:03:11]} 9. f3 {[%clk 0:03:08.2]} 9... c6 {[%clk 0:03:12.6]}
10. Bg5 {[%clk 0:03:03.1]} 10... Qb6 {[%clk 0:03:09.6]} 11. Kh1 {[%clk
0:02:29.5]} 11... Nbd7 {[%clk 0:03:09.6]} 12. Nb3 {[%clk 0:02:25.9]} 12... a5
{[%clk 0:03:09.6]} 13. Rb1 {[%clk 0:02:26.1]} 13... a4 {[%clk 0:03:08.7]} 14.
Nd4 {[%clk 0:02:23]} 14... Nc5 {[%clk 0:02:59.7]} 15. Be3 {[%clk 0:02:21.6]}
15... Qa5 {[%clk 0:02:57.3]} 16. Qd2 {[%clk 0:02:15.3]} 16... Bd7 {[%clk
0:02:46.1]} 17. Rfd1 {[%clk 0:02:16.5]} 17... Rad8 {[%clk 0:02:46.7]} 18. Bf1
{[%clk 0:02:12.6]} 18... Bc8 {[%clk 0:02:46.1]} 19. Nce2 {[%clk 0:02:07.7]}
19... Qxd2 {[%clk 0:02:43.5]} 20. Rxd2 {[%clk 0:02:09.6]} 20... d5 {[%clk
0:02:44.8]} 21. cxd5 {[%clk 0:02:07.8]} 21... cxd5 {[%clk 0:02:43.3]} 22. Nb5
{[%clk 0:02:08]} 22... Ne6 {[%clk 0:02:35]} 23. e5 {[%clk 0:02:06]} 23... Nd7
{[%clk 0:02:23.8]} 24. f4 {[%clk 0:02:07]} 24... Ndc5 {[%clk 0:02:19.7]} 25. Nd6
{[%clk 0:02:06.1]} 25... Ne4 {[%clk 0:02:20.8]} 26. Nxe8 {[%clk 0:01:59.1]}
26... Nxd2 {[%clk 0:02:21]} 27. Bxd2 {[%clk 0:02:00.7]} 27... Rxe8 {[%clk
0:02:22]} 28. Rc1 {[%clk 0:01:59.8]} 28... Bd7 {[%clk 0:02:20.6]} 29. Nc3 {[%clk
0:01:59.6]} 29... Bc6 {[%clk 0:02:14.5]} 30. Bb5 {[%clk 0:01:58.2]} 30... Ra8
{[%clk 0:02:16]} 31. Kg1 {[%clk 0:01:55.1]} 31... f6 {[%clk 0:02:08.7]} 32. exf6
{[%clk 0:01:47.4]} 32... Bxf6 {[%clk 0:02:09.7]} 33. Bd3 {[%clk 0:01:35.7]}
33... Nc5 {[%clk 0:02:02.3]} 34. Bb1 {[%clk 0:01:32.4]} 34... Rd8 {[%clk
0:01:45.7]} 35. Re1 {[%clk 0:01:23.2]} 35... Kf7 {[%clk 0:01:13.9]} 36. Kf2
{[%clk 0:01:19.9]} 36... b5 {[%clk 0:01:08.7]} 37. g3 {[%clk 0:01:06.3]} 37...
b4 {[%clk 0:01:08.3]} 38. Nd1 {[%clk 0:01:06.9]} 38... b3 {[%clk 0:01:01.1]} 39.
a3 {[%clk 0:01:07.3]} 39... Ne4+ {[%clk 0:01:01.8]} 40. Bxe4 {[%clk 0:01:06.5]}
40... dxe4 {[%clk 0:01:03.7]} 41. Bc3 {[%clk 0:01:06]} 41... Bb5 {[%clk
0:00:56.5]} 42. Ke3 {[%clk 0:00:38.6]} 42... Bc6 {[%clk 0:00:34.6]} 43. Bxf6
{[%clk 0:00:36.7]} 43... Rd3+ {[%clk 0:00:35.8]} 44. Ke2 {[%clk 0:00:35.8]}
44... Kxf6 {[%clk 0:00:37.7]} 45. Nc3 {[%clk 0:00:36.1]} 45... Kf5 {[%clk
0:00:35.9]} 46. Rd1 {[%clk 0:00:37.2]} 46... Kg4 {[%clk 0:00:34.8]} 47. Rxd3
{[%clk 0:00:32.8]} 47... exd3+ {[%clk 0:00:35.4]} 48. Kxd3 {[%clk 0:00:29.1]}
48... Kh3 {[%clk 0:00:37]} 49. Ke2 {[%clk 0:00:30.5]} 49... Kxh2 {[%clk
0:00:38.4]} 50. Kf2 {[%clk 0:00:32]} 50... Kh3 {[%clk 0:00:38.8]} 51. Ne2 {[%clk
0:00:32.8]} 51... Kg4 {[%clk 0:00:36]} 52. Nd4 {[%clk 0:00:34]} 52... Bd7 {[%clk
0:00:37.1]} 53. Nf3 {[%clk 0:00:33.2]} 53... Kf5 {[%clk 0:00:38.4]} 54. Ne5
{[%clk 0:00:33.5]} 54... Bb5 {[%clk 0:00:39]} 55. Kf3 {[%clk 0:00:34.7]} 55...
h5 {[%clk 0:00:39.7]} 56. Ke3 {[%clk 0:00:33.3]} 56... g5 {[%clk 0:00:40.7]} 57.
Nf3 {[%clk 0:00:33]} 57... gxf4+ {[%clk 0:00:41.4]} 58. gxf4 {[%clk 0:00:33.9]}
58... Kg4 {[%clk 0:00:42.8]} 59. Ne5+ {[%clk 0:00:33.8]} 59... Kg3 {[%clk
0:00:43.5]} 60. f5 {[%clk 0:00:33.2]} 60... h4 {[%clk 0:00:30]} 61. f6 {[%clk
0:00:33.9]} 61... Be8 {[%clk 0:00:31.2]} 62. Nf3 {[%clk 0:00:17]} 62... h3
{[%clk 0:00:32.3]} 63. Ke4 {[%clk 0:00:14]} 63... Bg6+ {[%clk 0:00:26.6]} 64.
Ke3 {[%clk 0:00:15.2]} 64... Bh5 {[%clk 0:00:27.9]} 65. Ng5 {[%clk 0:00:09.1]}
65... h2 {[%clk 0:00:28.6]} 66. Ne4+ {[%clk 0:00:10.7]} 66... Kg2 {[%clk
0:00:29.7]} 67. Nf2 {[%clk 0:00:12.1]} 67... Bg6 {[%clk 0:00:30.6]} 68. Nh1
{[%clk 0:00:04.2]} 68... Bf7 {[%clk 0:00:22]} 69. Nf2 {[%clk 0:00:05.1]} 69...
Bg6 {[%clk 0:00:16.6]} 70. Nh1 {[%clk 0:00:06.2]} 70... Be8 {[%clk 0:00:18.2]}
71. Nf2 {[%clk 0:00:07.2]} 71... h1=Q {[%clk 0:00:16.8]} 72. Nxh1 {[%clk
0:00:08.5]} 72... Kxh1 {[%clk 0:00:18.7]} 73. Kd4 {[%clk 0:00:10.1]} 73... Kg2
{[%clk 0:00:20.3]} 74. Kc5 {[%clk 0:00:11.8]} 74... Kf2 {[%clk 0:00:22]} 75. Kb4
{[%clk 0:00:13.5]} 75... Ke2 {[%clk 0:00:22.5]} 76. f7 {[%clk 0:00:15.1]} 76...
Bxf7 {[%clk 0:00:23.8]} 77. Kxa4 {[%clk 0:00:16.5]} 77... Kd3 {[%clk 0:00:25.2]}
78. Kb4 {[%clk 0:00:15.9]} 78... Kc2 {[%clk 0:00:26.8]} 79. a4 {[%clk
0:00:17.2]} 79... Kxb2 {[%clk 0:00:28]} 80. a5 {[%clk 0:00:18.6]} 80... Bd5
{[%clk 0:00:29.3]} 81. Kc5 {[%clk 0:00:19.3]} 81... Ba8 {[%clk 0:00:31.2]} 0-1

[Event "*** Titled Tuesday 3|2 Blitz"]
[Site "Chess.com"]
[Date "2016.03.01"]
[Round "1"]
[White "Kanthecarowin"]
[Black "TheLancer"]
[Result "1/2-1/2"]
[WhiteElo "2192"]
[BlackElo "2406"]
[TimeControl "180+2"]
[EndTime "17:11:44 PST"]
[Termination "Game drawn by stalemate"]

1. d4 {[%clk 0:02:59.6]} 1... Nf6 {[%clk 0:03:00.3]} 2. c4 {[%clk 0:02:54.5]}
2... e6 {[%clk 0:03:00]} 3. Nc3 {[%clk 0:02:45.4]} 3... Bb4 {[%clk 0:03:00.2]}
4. Qc2 {[%clk 0:02:47.3]} 4... Nc6 {[%clk 0:02:56.7]} 5. Nf3 {[%clk 0:02:46.8]}
5... d6 {[%clk 0:02:50.2]} 6. e4 {[%clk 0:02:44.6]} 6... e5 {[%clk 0:02:40.9]}
7. d5 {[%clk 0:02:44.2]} 7... Bxc3+ {[%clk 0:02:40.1]} 8. bxc3 {[%clk
0:02:46.1]} 8... Nb8 {[%clk 0:02:37.8]} 9. Ng1 {[%clk 0:02:46.2]} 9... Na6
{[%clk 0:02:22]} 10. Bd3 {[%clk 0:02:46.2]} 10... Nc5 {[%clk 0:02:18]} 11. Ne2
{[%clk 0:02:48.1]} 11... O-O {[%clk 0:01:58.1]} 12. O-O {[%clk 0:02:46.1]} 12...
Nh5 {[%clk 0:01:39.2]} 13. f4 {[%clk 0:02:43.6]} 13... exf4 {[%clk 0:01:13.2]}
14. Nxf4 {[%clk 0:02:31.8]} 14... Nxf4 {[%clk 0:01:09.3]} 15. Bxf4 {[%clk
0:02:33.7]} 15... f6 {[%clk 0:01:09.5]} 16. Rae1 {[%clk 0:02:24.9]} 16... Bd7
{[%clk 0:00:57.9]} 17. Bg3 {[%clk 0:02:22.5]} 17... Be8 {[%clk 0:00:38.9]} 18.
Bf2 {[%clk 0:02:21.8]} 18... Nxd3 {[%clk 0:00:37.4]} 19. Qxd3 {[%clk 0:02:23.7]}
19... Bg6 {[%clk 0:00:38.9]} 20. Bd4 {[%clk 0:02:23.6]} 20... b6 {[%clk
0:00:38]} 21. Qh3 {[%clk 0:02:22.4]} 21... Qc8 {[%clk 0:00:37]} 22. Qg3 {[%clk
0:02:22.1]} 22... Qa6 {[%clk 0:00:37.6]} 23. Qd3 {[%clk 0:02:21.1]} 23... Rae8
{[%clk 0:00:29.7]} 24. Rf2 {[%clk 0:02:21.2]} 24... Re7 {[%clk 0:00:24.2]} 25.
h4 {[%clk 0:02:15.4]} 25... Qc8 {[%clk 0:00:22.1]} 26. Rfe2 {[%clk 0:02:10.9]}
26... Qg4 {[%clk 0:00:22.3]} 27. Qh3 {[%clk 0:02:07.4]} 27... Qxh3 {[%clk
0:00:21.6]} 28. gxh3 {[%clk 0:02:07.9]} 28... Rfe8 {[%clk 0:00:22.8]} 29. e5
{[%clk 0:02:02.6]} 29... fxe5 {[%clk 0:00:18.8]} 30. Bf2 {[%clk 0:01:55.6]}
30... Bd3 {[%clk 0:00:19.8]} 31. Rd2 {[%clk 0:01:55.3]} 31... Bxc4 {[%clk
0:00:21]} 32. Re4 {[%clk 0:01:56.6]} 32... Ba6 {[%clk 0:00:20.7]} 33. Be3 {[%clk
0:01:56.5]} 33... Bc8 {[%clk 0:00:21.5]} 34. Kg2 {[%clk 0:01:56.9]} 34... Rf7
{[%clk 0:00:22.5]} 35. Rc4 {[%clk 0:01:56.8]} 35... a5 {[%clk 0:00:22.2]} 36.
Re4 {[%clk 0:01:54.8]} 36... Ref8 {[%clk 0:00:23.3]} 37. Bg5 {[%clk 0:01:54.1]}
37... Rf3 {[%clk 0:00:24.1]} 38. Re3 {[%clk 0:01:46.5]} 38... Bxh3+ {[%clk
0:00:23.8]} 39. Kh2 {[%clk 0:01:47]} 39... Rxe3 {[%clk 0:00:24.7]} 40. Bxe3
{[%clk 0:01:48.9]} 40... Bd7 {[%clk 0:00:25.9]} 41. Kg3 {[%clk 0:01:49.2]} 41...
h5 {[%clk 0:00:25.4]} 42. Bg5 {[%clk 0:01:48.8]} 42... Bg4 {[%clk 0:00:26.4]}
43. c4 {[%clk 0:01:48]} 43... Rf3+ {[%clk 0:00:27]} 44. Kg2 {[%clk 0:01:48.2]}
44... Rc3 {[%clk 0:00:28.5]} 45. Bd8 {[%clk 0:01:48.6]} 45... Rxc4 {[%clk
0:00:29.4]} 46. Rf2 {[%clk 0:01:50.5]} 46... e4 {[%clk 0:00:23.7]} 47. Rf4
{[%clk 0:01:46.8]} 47... Bf3+ {[%clk 0:00:23.1]} 48. Kf2 {[%clk 0:01:46.6]}
48... Rc2+ {[%clk 0:00:18.1]} 49. Ke3 {[%clk 0:01:47.5]} 49... Rc3+ {[%clk
0:00:17.9]} 50. Kd4 {[%clk 0:01:48.7]} 50... Rd3+ {[%clk 0:00:19.2]} 51. Kc4
{[%clk 0:01:50.1]} 51... g6 {[%clk 0:00:17.9]} 52. Be7 {[%clk 0:01:49.5]} 52...
Be2 {[%clk 0:00:16.3]} 53. Rxe4 {[%clk 0:01:48.4]} 53... Re3+ {[%clk 0:00:16.6]}
54. Kd4 {[%clk 0:01:49.3]} 54... Rd3+ {[%clk 0:00:17.4]} 55. Kc4 {[%clk
0:01:49.6]} 55... Re3+ {[%clk 0:00:18.2]} 56. Kd4 {[%clk 0:01:51.1]} 56... Rxe4+
{[%clk 0:00:20.1]} 57. Kxe4 {[%clk 0:01:52.4]} 57... Kf7 {[%clk 0:00:21.2]} 58.
Bd8 {[%clk 0:01:53.8]} 58... Ke8 {[%clk 0:00:21.1]} 59. Bxc7 {[%clk 0:01:55]}
59... b5 {[%clk 0:00:20.4]} 60. Bxa5 {[%clk 0:01:55.9]} 60... Bg4 {[%clk
0:00:19.3]} 61. Bb4 {[%clk 0:01:56.7]} 61... Bf5+ {[%clk 0:00:20.3]} 62. Kf4
{[%clk 0:01:57.2]} 62... Kd7 {[%clk 0:00:22.2]} 63. Kg5 {[%clk 0:01:58.5]} 63...
Be4 {[%clk 0:00:23.3]} 64. Kf6 {[%clk 0:01:59.9]} 64... Bxd5 {[%clk 0:00:24.4]}
65. Kxg6 {[%clk 0:02:01.5]} 65... Bf3 {[%clk 0:00:26]} 66. Kg5 {[%clk
0:02:02.1]} 66... Kc6 {[%clk 0:00:27.1]} 67. a3 {[%clk 0:02:03.4]} 67... Kd5
{[%clk 0:00:27.9]} 68. Kf4 {[%clk 0:02:04.9]} 68... Bg4 {[%clk 0:00:27]} 69. Ke3
{[%clk 0:02:05.9]} 69... Ke5 {[%clk 0:00:27.8]} 70. Kd3 {[%clk 0:02:06.3]} 70...
d5 {[%clk 0:00:26.6]} 71. Ke3 {[%clk 0:02:07.5]} 71... d4+ {[%clk 0:00:27.6]}
72. Kd2 {[%clk 0:02:08.9]} 72... Bf5 {[%clk 0:00:28.6]} 73. Be7 {[%clk
0:02:09.2]} 73... Ke4 {[%clk 0:00:29.6]} 74. Bb4 {[%clk 0:02:10.1]} 74... Kf3
{[%clk 0:00:30]} 75. Be7 {[%clk 0:02:11.1]} 75... Kg4 {[%clk 0:00:30.3]} 76. Bg5
{[%clk 0:02:12.3]} 76... Be4 {[%clk 0:00:31.5]} 77. Be7 {[%clk 0:02:13.4]} 77...
Kf5 {[%clk 0:00:31.8]} 78. Bg5 {[%clk 0:02:14.5]} 78... Ke6 {[%clk 0:00:33]} 79.
Bd8 {[%clk 0:02:15.4]} 79... Kd5 {[%clk 0:00:34.7]} 80. Be7 {[%clk 0:02:16.5]}
80... Kc4 {[%clk 0:00:36.1]} 81. Bb4 {[%clk 0:02:17.2]} 81... Bf3 {[%clk
0:00:37.5]} 82. Be7 {[%clk 0:02:18.4]} 82... Bg4 {[%clk 0:00:39]} 83. Bb4 {[%clk
0:02:19.6]} 83... Kd5 {[%clk 0:00:36.6]} 84. Be7 {[%clk 0:02:20.8]} 84... Bf5
{[%clk 0:00:38.5]} 85. Bg5 {[%clk 0:02:22.1]} 85... Ke6 {[%clk 0:00:40.4]} 86.
Bd8 {[%clk 0:02:22.5]} 86... Ke5 {[%clk 0:00:41.5]} 87. Ba5 {[%clk 0:02:23.3]}
87... Kf4 {[%clk 0:00:42.6]} 88. Bc7+ {[%clk 0:02:23.8]} 88... Kg4 {[%clk
0:00:43.9]} 89. Bd8 {[%clk 0:02:25.7]} 89... Be4 {[%clk 0:00:45.3]} 90. Bf6
{[%clk 0:02:25.5]} 90... Bf5 {[%clk 0:00:43.7]} 91. Bg5 {[%clk 0:02:26.5]} 91...
Be4 {[%clk 0:00:44.5]} 92. Bf6 {[%clk 0:02:23.3]} 92... Bb1 {[%clk 0:00:46]} 93.
Bxd4 {[%clk 0:01:42.3]} 93... Kxh4 {[%clk 0:00:42.3]} 94. Kc3 {[%clk 0:01:42.5]}
94... Be4 {[%clk 0:00:39.3]} 95. a4 {[%clk 0:01:41.1]} 95... bxa4 {[%clk
0:00:38.4]} 96. Kb4 {[%clk 0:01:42.1]} 96... Bc2 {[%clk 0:00:38.6]} 97. Ba7
{[%clk 0:01:42.6]} 97... Kg3 {[%clk 0:00:38.8]} 98. Ka3 {[%clk 0:01:43.3]} 98...
h4 {[%clk 0:00:38.1]} 99. Bb8+ {[%clk 0:01:43.9]} 99... Kf3 {[%clk 0:00:39.2]}
100. Bc7 {[%clk 0:01:45.1]} 100... h3 {[%clk 0:00:40.1]} 101. Bb8 {[%clk
0:01:46.5]} 101... Kg2 {[%clk 0:00:41.7]} 102. Bc7 {[%clk 0:01:47.8]} 102... h2
{[%clk 0:00:43]} 103. Bxh2 {[%clk 0:01:49]} 103... Kxh2 {[%clk 0:00:44.9]} 104.
Kb2 {[%clk 0:01:50.3]} 104... Bb3 {[%clk 0:00:45.8]} 105. Ka1 {[%clk 0:01:52.2]}
105... Kg3 {[%clk 0:00:47.6]} 106. Kb1 {[%clk 0:01:53.1]} 106... Kf4 {[%clk
0:00:49.5]} 107. Ka1 {[%clk 0:01:55]} 107... Ke4 {[%clk 0:00:51.4]} 108. Kb1
{[%clk 0:01:56.9]} 108... Kd4 {[%clk 0:00:53.3]} 109. Ka1 {[%clk 0:01:58.8]}
109... Kc4 {[%clk 0:00:55.2]} 110. Kb1 {[%clk 0:02:00.7]} 110... Kb4 {[%clk
0:00:57.1]} 111. Ka1 {[%clk 0:02:02.6]} 111... Ka3 {[%clk 0:00:59]} 112. Kb1
{[%clk 0:02:04]} 112... Bc2+ {[%clk 0:01:00.1]} 113. Ka1 {[%clk 0:02:05.5]}
113... Bb3 {[%clk 0:01:00.6]} 114. Kb1 {[%clk 0:02:06.9]} 114... Bc4 {[%clk
0:01:02.5]} 115. Ka1 {[%clk 0:02:08.4]} 115... Kb4 {[%clk 0:01:04.4]} 116. Kb1
{[%clk 0:02:09.8]} 116... a3 {[%clk 0:01:06.3]} 117. Ka1 {[%clk 0:02:11.4]}
117... Kc3 {[%clk 0:01:08.2]} 118. Kb1 {[%clk 0:02:12.9]} 118... Bb3 {[%clk
0:01:10.1]} 119. Ka1 {[%clk 0:02:14.5]} 119... Ba4 {[%clk 0:01:12]} 120. Kb1
{[%clk 0:02:15.9]} 120... Kb4 {[%clk 0:01:13.9]} 121. Ka1 {[%clk 0:02:17.5]}
121... Bb5 {[%clk 0:01:15.8]} 122. Kb1 {[%clk 0:02:19.1]} 122... Bd3+ {[%clk
0:01:17.7]} 123. Ka1 {[%clk 0:02:20.7]} 123... Be4 {[%clk 0:01:19.6]} 124. Ka2
{[%clk 0:02:21.5]} 124... Ka4 {[%clk 0:01:18.1]} 125. Ka1 {[%clk 0:02:22.9]}
125... Kb3 {[%clk 0:01:20]} 1/2-1/2

[Event "*** Titled Tuesday 3|2 Blitz"]
[Site "Chess.com"]
[Date "2016.03.01"]
[Round "2"]
[White "evgenyermolaev"]
[Black "AlexanderL"]
[Result "0-1"]
[WhiteElo "2090"]
[BlackElo "2576"]
[TimeControl "180+2"]
[EndTime "17:15:47 PST"]
[Termination "AlexanderL won by resignation"]

1. e4 {[%clk 0:03:01.9]} 1... e6 {[%clk 0:03:00.2]} 2. d4 {[%clk 0:03:02.6]}
2... d5 {[%clk 0:03:00.9]} 3. Nc3 {[%clk 0:03:04.2]} 3... Nf6 {[%clk 0:03:01.3]}
4. e5 {[%clk 0:03:05.1]} 4... Nfd7 {[%clk 0:03:02.1]} 5. Nf3 {[%clk 0:03:06.6]}
5... c5 {[%clk 0:03:02.6]} 6. dxc5 {[%clk 0:03:07.5]} 6... Nc6 {[%clk
0:02:59.8]} 7. Bf4 {[%clk 0:03:07.9]} 7... Nxc5 {[%clk 0:02:58.5]} 8. Bd3 {[%clk
0:03:07.8]} 8... Be7 {[%clk 0:02:55.8]} 9. O-O {[%clk 0:03:08]} 9... O-O {[%clk
0:02:55.4]} 10. Ne2 {[%clk 0:03:03.2]} 10... f6 {[%clk 0:02:46.8]} 11. exf6
{[%clk 0:03:01.8]} 11... Bxf6 {[%clk 0:02:47.8]} 12. c3 {[%clk 0:03:03.1]} 12...
Nxd3 {[%clk 0:02:40.2]} 13. Qxd3 {[%clk 0:03:01.9]} 13... e5 {[%clk 0:02:41]}
14. Nxe5 {[%clk 0:02:51.5]} 14... Bxe5 {[%clk 0:02:40.3]} 15. Be3 {[%clk
0:02:49.5]} 15... Bf5 {[%clk 0:02:38.4]} 16. Qb5 {[%clk 0:02:47.5]} 16... a6
{[%clk 0:02:16.4]} 17. Qxb7 {[%clk 0:02:47.9]} 17... Na5 {[%clk 0:02:16.2]} 18.
Qb4 {[%clk 0:02:48.3]} 18... Rb8 {[%clk 0:02:09.5]} 19. Qa3 {[%clk 0:02:37.8]}
19... Nc4 {[%clk 0:02:06.8]} 20. Qxa6 {[%clk 0:02:38]} 20... Rxb2 {[%clk
0:02:07.1]} 21. Nd4 {[%clk 0:02:34.9]} 21... Nxe3 {[%clk 0:02:06.1]} 22. fxe3
{[%clk 0:02:35.4]} 22... Bxh2+ {[%clk 0:01:52.9]} 23. Kxh2 {[%clk 0:02:33.5]}
23... Qh4+ {[%clk 0:01:50.9]} 24. Kg1 {[%clk 0:02:34.3]} 24... Rxg2+ {[%clk
0:01:48.7]} 25. Kxg2 {[%clk 0:02:34.2]} 25... Bh3+ {[%clk 0:01:46.8]} 0-1